[Event "8th Svetozar Gligoric Cup 2022"]
[Site "Paracin"]
[Date "2022.05.31"]
[Round "1.1"]
[White "Markus, Robert"]
[Black "Savicevic, Vlatko"]
[Result "1-0"]
[ECO "D30"]
[WhiteElo "2613"]
[BlackElo "2284"]
[Annotator "TA"]
[PlyCount "65"]
[EventDate "2022.05.31"]
[EventType "team-tourn"]
[EventCountry "SRB"]
[SourceTitle "playchess.com"]
[Source "ChessBase"]
[SourceQuality "1"]
[TimeControl "40/5400+30:900+30"]

{[%evp 9,65,29,20,20,13,28,34,18,16,34,34,29,49,53,62,65,54,54,46,30,39,32,58,57,57,47,48,45,53,47,56,42,53,39,63,51,39,36,36,36,41,32,226,204,164,51,58,51,51,47,107,60,123,104,125,113,122,113]} 1. d4 {[%emt 0:00:05]} d5 {[%emt 0:00:09]} 2. c4 {[%emt 0:00:08]} e6 {[%emt 0:00:14]} 3. Nf3 {[%emt 0:00:07]} Nd7 {[%emt 0:03:07]} 4. g3 {[%emt 0:03:09]} dxc4 {[%emt 0:01:19]} 5. Bg2 {[%emt 0:00:07]} Rb8 {[%emt 0:00:44]} 6. a4 {[%emt 0:03:10][%mdl 1024] White has compensation. D30: Queen's Gambit Declined: Systems without Nc3.} b6 {[%emt 0:01:22]} 7. O-O {[%emt 0:05:35]} Ngf6 {[%emt 0:04:22][%cal Bg8f6,Bf6d5,Bd5b4][%mdl 32]} 8. Nbd2 $5 {[%emt 0:03:55][%mdl 4] White is slightly better. Nowadays more popular than 8.Qc2. Exploring less charted territory.} Ba6 {[%emt 0:03:50]} 9. Qc2 $1 {[%emt 0:04:46]} Be7 {[%emt 0:54:19][%cal Oc4c3]} 10. Nxc4 {[%emt 0:02:02] [#]} O-O $146 {[%emt 0:02:11]} ({Predecessor:} 10... Bb7 11. Nfe5 Bxg2 12. Kxg2 Nxe5 13. Nxe5 Qd5+ 14. f3 c5 15. e4 Qb7 16. dxc5 Bxc5 {½-½ (48) Giri,A (2772)-Sychev,K (2550) Warsaw 2021}) 11. Nfe5 {[%emt 0:05:56]} Nxe5 {[%emt 0:01:13]} 12. Nxe5 {[%emt 0:00:18]} Nd5 $1 {[%emt 0:00:51]} ({Less strong is} 12... Qxd4 13. Nc6 Qc5 14. Qxc5 Bxc5 15. b4 $16 (15. Nxb8 Rxb8 16. Bf3 e5 $14)) 13. Bd2 {[%emt 0:12:52] Nc6 is the strong threat.} Bb7 {[%emt 0:02:59]} (13... Bxe2 $2 14. Rfe1 $18) 14. Nc6 {[%emt 0:00:57]} Bxc6 {[%emt 0:00:09]} 15. Qxc6 {[%emt 0:00:07]} Nb4 {[%emt 0:01:07]} 16. Qc4 {[%emt 0:02:12]} a5 {[%emt 0:03:46]} 17. Rfd1 {[%emt 0:04:25]} Qd7 {[%emt 0:01:26]} 18. Rac1 {[%emt 0:08:41]} Rfc8 {[%emt 0:10:10]} 19. Bxb4 {[%emt 0:23:06]} Bxb4 {[%emt 0:00:13]} 20. Bc6 {[%emt 0:00:06]} Qe7 {[%emt 0:00:07]} 21. e4 {[%emt 0:00:40]} Rd8 {[%emt 0:00:15]} 22. e5 {[%emt 0:00:08]} f6 {[%emt 0:03:03]} 23. d5 {[%emt 0:08:27]} fxe5 {[%emt 0:00:09]} 24. dxe6 {[%emt 0:00:05]} Rd6 {[%emt 0:01:34]} 25. Rxd6 {[%emt 0:02:03]} cxd6 {[%emt 0:00:07] [#]} ({Black should try} 25... Bxd6 $14 26. Rc2 Bc5) 26. Bd5 $1 $18 {[%emt 0:01:36][%cal Oc4c8] And now Qc8+! would win.} Bc5 {[%emt 0:00:08] [#]} 27. Kg2 {[%emt 0:02:23]} (27. Rc3 $1 $18 {[%cal Rc3f3]}) 27... Rf8 {[%emt 0:00:13]} 28. f3 {[%emt 0:00:06]} Kh8 {[%emt 0:01:32]} 29. h4 {[%emt 0:00:38]} Qf6 {[%emt 0:00:22]} (29... g6 $14) 30. Re1 {[%emt 0:02:49]} (30. h5 $16) 30... Qe7 {[%emt 0:00:24]} (30... g6 $14) 31. Rh1 {[%emt 0:01:07] White is more active. White is better.} Qf6 {[%emt 0:00:34]} 32. Qe4 {[%emt 0:00:11]} Rc8 {[%emt 0:00:53]} 33. Bc4 {[%emt 0:00:14] Weighted Error Value: White=0.10 (very precise) /Black=0.20 (precise)} 1-0

[Event "8th Svetozar Gligoric Cup 2022"]
[Site "Paracin"]
[Date "2022.05.31"]
[Round "1.2"]
[White "Simic, Dragisa"]
[Black "Brenjo, Slavisa"]
[Result "0-1"]
[ECO "C55"]
[WhiteElo "2290"]
[BlackElo "2402"]
[Annotator "TA"]
[PlyCount "60"]
[EventDate "2022.05.31"]
[EventType "team-tourn"]
[EventCountry "SRB"]
[SourceTitle "playchess.com"]
[Source "ChessBase"]
[SourceQuality "1"]
[TimeControl "40/5400+30:900+30"]

{[%evp 13,60,16,2,5,25,11,18,14,22,17,16,15,30,14,30,33,50,45,59,64,79,32,41,21,31,28,48,0,0,0,0,0,0,0,35,47,82,0,29,-22,0,17,17,-162,-152,-29983,-29984,-29991,-29992]} 1. e4 {[%emt 0:00:04]} e5 {[%emt 0:00:12]} 2. Nf3 {[%emt 0:00:12]} Nc6 {[%emt 0:00:08]} 3. Bc4 {[%emt 0:00:08]} Nf6 {[%emt 0:00:17]} 4. d3 {[%emt 0:00:31]} Be7 {[%emt 0:00:12]} 5. Nc3 {[%emt 0:05:48]} d6 {[%emt 0:02:08]} 6. a3 {[%emt 0:02:58]} O-O {[%emt 0:01:41]} 7. h3 {[%emt 0:03:59]} Be6 {[%emt 0:05:17][%cal Of6e4]} 8. Nd5 {[%emt 0:02:49] C55: Two Knights: 4 d3, 4 d4 exd4 5 e5 and Max Lange Attack.} Bxd5 {[%emt 0:01:05]} 9. exd5 {[%emt 0:00:10]} Nb8 {[%emt 0:00:25]} 10. O-O {[%emt 0:01:49] The position is equal.} Nbd7 {[%emt 0:01:29]} 11. Ba2 {[%emt 0:02:14]} Re8 {[%emt 0:00:56] [#]} 12. Re1 $146 {[%emt 0:04:28]} ({Predecessor:} 12. d4 exd4 13. Nxd4 Bf8 14. Bg5 Kh8 15. Qf3 h6 16. Be3 Ne5 17. Qg3 Qd7 18. Rae1 {½-½ (44) Escobar Forero,A (2473)-Mendoza,R (2390) Cartagena 2007}) 12... Bf8 {[%emt 0:02:32]} 13. Ng5 {[%emt 0:12:35]} Nb6 {[%emt 0:10:27]} 14. c4 {[%emt 0:01:52]} h6 {[%emt 0:03:33]} 15. Ne4 {[%emt 0:01:31]} g6 {[%emt 0:02:46]} 16. b4 {[%emt 0:05:48]} Nbd7 {[%emt 0:01:12]} 17. Bb2 {[%emt 0:08:19]} (17. Rb1 $16) 17... Nh5 $14 {[%emt 0:07:41]} 18. Rc1 {[%emt 0:06:36]} f5 {[%emt 0:04:00]} 19. Nc3 {[%emt 0:05:43]} Qg5 {[%emt 0:13:51]} 20. Nb5 {[%emt 0:04:37]} (20. Rc2 $14) 20... Nf4 $11 {[%emt 0:05:33][%csl Gf4][%cal Rg5g2]} 21. Qf3 {[%emt 0:02:49]} Bg7 {[%emt 0:16:58][%cal Oe5e4] And now ...e4! would win.} 22. Ba1 {[%emt 0:04:31]} (22. Nxc7 e4 23. dxe4 Bxb2 $17) 22... e4 $40 {[%emt 0:09:46][%mdl 128] White needs to defend precisely.} 23. dxe4 {[%emt 0:01:05]} Ne5 {[%emt 0:06:21]} (23... Rxe4 $5 {[%cal Rf4e2]} 24. h4 Qxh4 $11) 24. Bxe5 {[%emt 0:01:50]} Bxe5 {[%emt 0:00:05]} 25. Bb1 {[%emt 0:05:32]} (25. Nxc7 $16 {aiming for Bb1.} fxe4 26. Qg4 (26. Qxe4 $2 Nxh3+ 27. Kf1 Nxf2 $19) 26... Qxg4 27. hxg4) 25... Re7 {[%emt 0:00:24]} 26. c5 {[%emt 0:02:33]} (26. exf5 Ne2+ $1 {[%mdl 512]} 27. Qxe2 Bh2+ $1 28. Kf1 Rxe2 29. Kxe2 c6 30. dxc6 bxc6 $17) ({Better is} 26. Rcd1) 26... Rf8 {[%emt 0:01:31]} 27. cxd6 {[%emt 0:05:23]} cxd6 {[%emt 0:00:07] White must now prevent ...fxe4.} 28. Rc7 $2 {[%emt 0:02:51]} (28. Nxa7 fxe4 29. Qg4 (29. Bxe4 $2 Bd4 $19) 29... Qf6 30. Bxe4 Bb2 $15) ({Wrong is} 28. exf5 $2 {[#]} Ne2+ $1 {[%mdl 512]} 29. Qxe2 Bh2+ $1 {[%mdl 512]} 30. Kf1 Rxe2 31. Kxe2 Qxg2 $19) (28. Rcd1 $11 {and White stays safe.}) 28... fxe4 $19 {[%emt 0:00:55]} 29. Rxe4 {[%emt 0:00:46]} (29. Bxe4 $17 Ne6 30. Rxe7 Rxf3 31. Rxe6) 29... Rxc7 {[%emt 0:00:58]} 30. Nxc7 {[%emt 0:00:18] [#]} Nxh3+ $1 {[%emt 0:03:00][%mdl 576] Pin.  Weighted Error Value: White=0.47/Black=0.08 (flawless)} 0-1

[Event "8th Svetozar Gligoric Cup 2022"]
[Site "Paracin"]
[Date "2022.05.31"]
[Round "1.3"]
[White "Popovic, Milan S"]
[Black "Adzic, Momcilo"]
[Result "1-0"]
[ECO "B62"]
[WhiteElo "2383"]
[BlackElo "2203"]
[Annotator "TA"]
[PlyCount "57"]
[EventDate "2022.05.31"]
[EventType "team-tourn"]
[EventCountry "SRB"]
[SourceTitle "playchess.com"]
[Source "ChessBase"]
[SourceQuality "1"]
[TimeControl "40/5400+30:900+30"]

{[%evp 13,57,21,18,0,2,4,57,54,56,51,52,45,62,56,41,67,75,35,47,61,81,62,84,40,50,44,67,18,61,71,64,0,0,0,28,0,0,0,0,0,0,-7,37,53,375,335]} 1. e4 {[%emt 0:00:04]} c5 {[%emt 0:00:34]} 2. Nf3 {[%emt 0:00:05]} Nc6 {[%emt 0:00:28]} 3. d4 {[%emt 0:00:20]} cxd4 {[%emt 0:00:11]} 4. Nxd4 {[%emt 0:00:04]} Nf6 {[%emt 0:00:58]} 5. Nc3 {[%emt 0:00:05]} d6 {[%emt 0:00:13]} 6. Bg5 {[%emt 0:00:11]} e6 {[%emt 0:00:16]} 7. Bb5 {[%emt 0:00:06]} Bd7 {[%emt 0:00:22]} 8. Qd3 $1 {[%emt 0:00:20][%mdl 4] outshines the older 8.Bxc6. B62: Sicilian: Richter-Rauzer: 6...e6: Unusual White 7th moves.} Be7 {[%emt 0:01:54]} 9. O-O-O {[%emt 0:01:27]} a6 {[%emt 0:11:54]} ({Black should try} 9... O-O $11) 10. Bxc6 {[%emt 0:00:25] White is slightly better.} bxc6 {[%emt 0:00:37]} 11. f4 {[%emt 0:03:20]} O-O {[%emt 0:10:06] [#]} 12. Nb3 $146 {[%emt 0:13:04]} ({Predecessor:} 12. e5 Ne8 13. Ne4 f6 14. exf6 Nxf6 15. Nxf6+ Bxf6 16. Bxf6 Rxf6 17. g3 c5 18. Nf3 {1-0 (38) Henkel,S (1319)-Kilburn,G (1202) Kalamazoo 1999}) 12... Be8 {[%emt 0:22:48]} 13. e5 {[%emt 0:53:41] White is more active.} Nd5 $1 {[%emt 0:04:19]} 14. Bxe7 {[%emt 0:11:25]} Qxe7 {[%emt 0:00:22]} 15. Ne4 {[%emt 0:03:46]} ({But not} 15. Nxd5 $6 cxd5 16. Rhe1 dxe5 $11) 15... dxe5 {[%emt 0:11:34]} 16. fxe5 {[%emt 0:00:06]} f6 {[%emt 0:01:44]} 17. exf6 {[%emt 0:00:58]} gxf6 {[%emt 0:00:54]} 18. Qg3+ {[%emt 0:07:44]} Bg6 $1 {[%emt 0:11:21]} 19. Rhe1 {[%emt 0:01:25]} e5 {[%emt 0:01:12] Against Nd4} 20. Qf2 {[%emt 0:00:51]} (20. Na5 $1 $14) 20... Rad8 {[%emt 0:07:38]} 21. Qc5 {[%emt 0:00:31][%cal Od1d5] [#] Black must now prevent Rxd5!} Qe6 {[%emt 0:02:00]} 22. Nc3 {[%emt 0:00:52]} (22. g3 $14) 22... Nxc3 $11 {[%emt 0:05:38]} 23. Qxc3 {[%emt 0:00:17]} Kh8 {[%emt 0:00:37]} 24. Kb1 {[%emt 0:00:35]} Rd5 {[%emt 0:02:00]} 25. h3 {[%emt 0:00:36]} Rfd8 {[%emt 0:00:26]} 26. Rc1 {[%emt 0:00:13]} Qd6 {[%emt 0:01:06]} (26... c5 $5) 27. Ka1 {[%emt 0:00:21]} a5 {[%emt 0:01:17]} 28. Nxa5 {[%emt 0:00:25] [#] Nb7 is the strong threat.} Rd2 $2 {[%emt 0:02:01][%mdl 8192]} (28... Ra8 $14 29. Nc4 (29. Nxc6 $2 Rc5 $19) 29... Qe7) 29. Nc4 {[%emt 0:01:43] Weighted Error Value: White=0.11 (very precise) /Black=0.40} 1-0

[Event "8th Svetozar Gligoric Cup 2022"]
[Site "Paracin"]
[Date "2022.05.31"]
[Round "1.4"]
[White "Vuksanovic, Zvezdan"]
[Black "Omorjan, Dejan"]
[Result "1/2-1/2"]
[ECO "B50"]
[WhiteElo "2187"]
[BlackElo "2339"]
[Annotator "TA"]
[PlyCount "82"]
[EventDate "2022.05.31"]
[EventType "team-tourn"]
[EventCountry "SRB"]
[SourceTitle "playchess.com"]
[Source "ChessBase"]
[SourceQuality "1"]
[TimeControl "40/5400+30:900+30"]

{[%evp 9,82,0,14,-27,-20,-23,-20,-36,-29,-30,-33,-72,-46,-75,-73,-93,-50,-106,-98,-114,-104,-127,-117,-129,-129,-124,-123,-162,-141,-197,-114,-173,-178,-282,-218,-220,-139,-193,-179,-158,-131,-183,-181,-191,-119,-112,-81,-118,-114,-137,-112,-147,4,-125,-63,-55,0,0,0,0,19,14,25,21,26,0,58,0,0,0,101,0,127,0,0]} 1. Nf3 {[%emt 0:00:19]} c5 {[%emt 0:00:05]} 2. g3 {[%emt 0:00:35]} g6 {[%emt 0:00:19]} 3. Bg2 {[%emt 0:00:24]} Bg7 {[%emt 0:00:02]} 4. O-O {[%emt 0:00:43]} Nc6 {[%emt 0:00:02]} 5. e4 {[%emt 0:00:24]} d6 {[%emt 0:00:46]} 6. h3 {[%emt 0:00:13] B50: Sicilian: 2...d6, Miscellaneous.} e5 {[%emt 0:01:22]} 7. d3 {[%emt 0:00:09]} Nge7 {[%emt 0:00:40]} 8. Be3 {[%emt 0:02:13]} h6 {[%emt 0:01:43]} 9. Nc3 {[%emt 0:00:49]} Be6 {[%emt 0:02:43] [#]} 10. Kh2 $146 {[%emt 0:00:33]} ({Predecessor:} 10. Ne2 Qd7 11. Kh2 f5 12. Nh4 Nd4 13. c3 Nxe2 14. Qxe2 O-O 15. f4 exf4 16. gxf4 {0-1 (52) Lafour,J (1690)-Karlsson,J (2054) Caleta 2020}) 10... b6 {[%emt 0:04:15]} 11. Ne2 {[%emt 0:03:24]} d5 {[%emt 0:02:29]} 12. c3 {[%emt 0:01:00]} Qd7 {[%emt 0:02:52]} 13. Qc2 {[%emt 0:02:25]} (13. d4 $15) 13... Rc8 {[%emt 0:03:19]} 14. Qa4 {[%emt 0:05:57]} O-O {[%emt 0:06:24]} 15. Nfg1 {[%emt 0:03:44]} d4 {[%emt 0:02:48]} 16. cxd4 {[%emt 0:00:28]} exd4 {[%emt 0:02:08]} 17. Bd2 {[%emt 0:06:17]} Ne5 {[%emt 0:02:57][%csl LRa4,LRd3]} 18. Qa3 {[%emt 0:04:33]} b5 {[%emt 0:15:57]} 19. Nc1 {[%emt 0:06:43]} (19. Nf4 $17) 19... a5 {[%emt 0:12:47]} ({Better is} 19... c4 $19 {[%cal Oc4c3]} 20. Bb4 a5 $1 21. Bxe7 b4 22. Qxa5 Qxe7) 20. b3 {[%emt 0:13:55]} (20. f4 $17 N5c6 21. Rb1) 20... c4 $19 {[%emt 0:05:00]} 21. Bf4 {[%emt 0:07:01]} (21. dxc4 {might work better.} bxc4 22. f4) 21... N7c6 {[%emt 0:12:28][%cal Be7c6,Bc6b4,Bb4c2,Bc2e3][%mdl 32]} (21... cxd3 22. Bxe5 b4 23. Qb2 (23. Qxa5 Nc6 $17) 23... Bxe5 24. Nxd3 $15) 22. Bxe5 {[%emt 0:01:03]} Bxe5 {[%emt 0:02:01]} 23. f4 {[%emt 0:00:11]} (23. bxc4 $17 {was necessary.} bxc4 24. f4) 23... Bd6 {[%emt 0:03:41]} 24. Qb2 {[%emt 0:00:12]} f5 {[%emt 0:06:59]} 25. Qe2 {[%emt 0:05:59]} (25. bxc4 $17 {is a better defense.} bxc4 26. dxc4) 25... Nb4 {[%emt 0:02:54] aiming for ...fxe4.} 26. Rd1 {[%emt 0:02:34]} cxd3 {[%emt 0:02:32]} (26... c3 $19 27. Nf3 Nc6) 27. Nxd3 $17 {[%emt 0:00:39] [#]} Nc2 {[%emt 0:00:35]} 28. Rac1 {[%emt 0:03:28]} Ne3 {[%emt 0:00:23]} 29. Rxc8 {[%emt 0:01:10]} Rxc8 {[%emt 0:00:12]} 30. Rd2 {[%emt 0:00:15]} a4 $2 {[%emt 0:01:28]} (30... fxe4 $17 31. Bxe4 g5) 31. bxa4 {[%emt 0:00:48]} (31. exf5 $11 Bxf5 32. Nf3) 31... bxa4 {[%emt 0:00:24]} (31... Bc4 $17 {...Bb4 is the strong threat.} 32. Qf3 Qb7) 32. exf5 $1 $15 {[%emt 0:00:40]} Bxf5 {[%emt 0:01:23] A strong pair of Bishops.} (32... Bc4 $15 33. Qf2 (33. fxg6 Bb4 $17) 33... Qxf5) 33. Nf3 $1 $11 {[%emt 0:00:44]} Qa7 {[%emt 0:02:03][%cal Og6g5]} 34. Nde5 {[%emt 0:01:53]} Bc5 {[%emt 0:00:37]} 35. Nh4 {[%emt 0:03:38]} a3 {[%emt 0:01:07]} 36. Nxf5 {[%emt 0:00:31]} gxf5 {[%emt 0:00:27]} 37. Qb5 {[%emt 0:01:16] Strongly threatening Qb3+.} Qg7 {[%emt 0:01:08]} (37... Rb8 $11 38. Qc6 Rb2 39. Rxb2 axb2 40. Qe6+ Kh8 41. Qe8+ (41. Qxh6+ Qh7 $11) 41... Kh7 42. Qg6+ Kh8 43. Qxh6+ Qh7 44. Qf6+ Qg7 45. Qd8+ Qg8 46. Qh4+ Qh7 47. Qd8+ Qg8 48. Qh4+ Qh7 49. Qf6+ Qg7 50. Qd8+ Qg8) 38. Qb3+ {[%emt 0:01:18]} (38. Nc6 $14 Ba7 39. Rd3) 38... Kh7 {[%emt 0:00:00]} 39. g4 {[%emt 0:03:38]} Ba7 {[%emt 0:00:18]} (39... Re8 $11) 40. Qxa3 {[%emt 0:00:00]} (40. gxf5 $16 {Threatens to win with f6.} Rc1 41. Qd3 (41. Qxa3 Rd1 $14)) 40... Rc3 {[%emt 0:00:00] [#]} (40... Bb8 $11 {keeps the balance.} 41. Qa8 Rf8) 41. Qa6 {[%emt 0:01:04]} (41. Qd6 $1 $16) 41... Bb8 {[%emt 0:16:42] Whites escaped into a draw.  Weighted Error Value: White=0.33/Black=0.38} 1/2-1/2

[Event "8th Svetozar Gligoric Cup 2022"]
[Site "Paracin"]
[Date "2022.05.31"]
[Round "1.5"]
[White "Pavkov, Nebojsa"]
[Black "Bogosavljevic, Boban"]
[Result "0-1"]
[ECO "A09"]
[WhiteElo "2207"]
[BlackElo "2527"]
[Annotator "TA"]
[PlyCount "111"]
[EventDate "2022.05.31"]
[EventType "team-tourn"]
[EventCountry "SRB"]
[SourceTitle "playchess.com"]
[Source "ChessBase"]
[SourceQuality "1"]
[TimeControl "40/5400+30:900+30"]

{[%evp 10,111,-16,-43,-44,-34,-33,-62,-30,-77,-80,-72,-78,-108,-103,-109,-107,-125,-88,-114,-113,-125,-86,-84,-84,-93,-63,-75,-64,-59,-34,-104,-104,-211,-54,-70,0,-95,-71,-125,-129,-169,-162,-165,-158,-156,-153,-156,-161,-156,-156,-164,-115,-134,-126,-119,-118,-160,-155,-144,-143,-170,-153,-186,-170,-167,-152,-262,-250,-283,-278,-333,-331,-314,-312,-356,-333,-360,-364,-354,-348,-318,-313,-418,-406,-403,-300,-333,0,-404,-400,-373,-374,-354,-329,-648,-608,-4802,-4702,-29981,-29982,-29982,-29982,-29981]} 1. g3 {[%emt 0:00:04]} e5 {[%emt 0:00:31]} 2. Bg2 {[%emt 0:00:12]} d5 {[%emt 0:00:34]} 3. c4 {[%emt 0:02:40]} d4 {[%emt 0:04:19]} 4. d3 {[%emt 0:02:35]} Nc6 {[%emt 0:00:23]} 5. Nf3 {[%emt 0:00:04]} Bb4+ {[%emt 0:01:00]} 6. Nbd2 {[%emt 0:00:40]} a5 {[%emt 0:01:08] A09: Réti Opening: 1 Nf3 d5 2 c4.} 7. O-O {[%emt 0:00:17]} Nf6 {[%emt 0:00:40]} 8. Nh4 {[%emt 0:14:13]} Be7 {[%emt 0:12:42] Black is slightly better.} (8... O-O {seems wilder.} 9. Ne4 Nxe4 10. Bxe4 Bh3) 9. a3 {[%emt 0:14:40] [#]} (9. Bxc6+ $11 bxc6 10. Ndf3) 9... O-O $146 {[%emt 0:06:05]} ({Predecessor:} 9... a4 10. Ndf3 Ng8 11. e4 dxe3 12. fxe3 g5 13. Nxg5 Bxg5 14. Qh5 Qe7 15. Bd5 Bf6 16. Qf3 Na5 {0-1 (24) Xaus,J (1970)-Martin,A (2150) IECG email 1998}) 10. Rb1 {[%emt 0:01:19]} Re8 {[%emt 0:04:27]} 11. Ndf3 {[%emt 0:22:47]} a4 {[%emt 0:10:25]} 12. b4 {[%emt 0:05:12]} axb3 $1 {[%emt 0:00:59]} 13. Rxb3 {[%emt 0:00:05]} h6 {[%emt 0:15:33]} 14. Ne1 {[%emt 0:17:55]} Nd7 {[%emt 0:11:31][%cal Bf6d7,Bd7c5,Bc5e4][%mdl 32]} 15. Nf5 {[%emt 0:01:27]} Nc5 {[%emt 0:03:29]} 16. Nxe7+ {[%emt 0:00:09]} Qxe7 {[%emt 0:00:08]} (16... Rxe7 $6 17. Rb5 Qd6 18. Nc2 $15) 17. Rb5 {[%emt 0:00:23]} e4 {[%emt 0:00:13]} 18. Bb2 {[%emt 0:07:54]} Bf5 {[%emt 0:03:21]} 19. dxe4 {[%emt 0:03:26]} Bxe4 {[%emt 0:00:28]} 20. Bxe4 {[%emt 0:01:16]} ({White should try} 20. Bxd4 $15 Nxd4 21. Qxd4) 20... Nxe4 {[%emt 0:00:23] Pair of Knights!} 21. Rxb7 {[%emt 0:00:21]} (21. Nc2 $17 {was necessary.}) 21... Rad8 $2 {[%emt 0:07:25]} (21... Nd6 $19 22. Rb3 Qxe2) 22. Rb5 $15 {[%emt 0:01:28]} Qe6 {[%emt 0:01:35] Inhibits Rd5. Black is much more active.} (22... Nc3 $15 23. Bxc3 dxc3) 23. Qd3 {[%emt 0:00:48] [#]} (23. Nf3 $11 {remains equal.}) 23... Nd6 $1 $17 {[%emt 0:09:17]} 24. Rc5 {[%emt 0:00:42] [#]} (24. Rd5 $142) 24... Ne5 $1 $36 {[%emt 0:00:20][%cal Bc6e5,Be5c4,Bc4d2][%mdl 2080] Black is really pushing.} ({Don't play} 24... Qxe2 25. Ba1 Nb8 26. Qxd4 $14) 25. Qxd4 {[%emt 0:01:06][%cal Rc5e5]} Ndxc4 {[%emt 0:00:13][%mdl 64] Discovered Attack} 26. Qc3 {[%emt 0:00:03]} Nxb2 {[%emt 0:00:29]} 27. Qxb2 {[%emt 0:00:05]} Nc4 {[%emt 0:00:06][%mdl 64] Discovered Attack} 28. Qb3 {[%emt 0:01:59]} Nd2 {[%emt 0:00:33][%mdl 64] Discovered Attack, Double Attack} 29. Qxe6 {[%emt 0:00:02]} Rxe6 {[%emt 0:00:10][%cal Be8e6,Be6b6,Bb6b2][%mdl 32]} 30. e3 {[%emt 0:01:02]} Rd7 {[%emt 0:01:37]} ({Inferior is} 30... Nxf1 31. Kxf1 Rd2 32. Rc3 $17) (30... Rf6 $19 31. Rc2 c5) 31. Kg2 {[%emt 0:00:31]} Nxf1 {[%emt 0:00:40]} 32. Kxf1 {[%emt 0:00:02][%mdl 4096] Endgame KRR-KRN} Rb6 {[%emt 0:00:23]} 33. Ke2 {[%emt 0:00:35] Inhibits Rd2+.} Rb2+ {[%emt 0:00:02]} 34. Nc2 {[%emt 0:00:13]} Kf8 {[%emt 0:01:43]} 35. Rc6 {[%emt 0:00:36]} Ke7 {[%emt 0:00:28]} 36. h4 {[%emt 0:00:35]} Kd8 {[%emt 0:00:22]} 37. Rc3 {[%emt 0:00:12]} Rd6 {[%emt 0:00:28]} 38. Rc5 {[%emt 0:00:26]} (38. e4 $17 {might work better.}) 38... Kd7 $19 {[%emt 0:00:11]} 39. Rc3 {[%emt 0:00:04]} Rc6 {[%emt 0:02:37]} 40. Kd3 {[%emt 0:00:00]} Rxc3+ {[%emt 0:00:00]} 41. Kxc3 {[%emt 0:01:17] KR-KN} Rb1 {[%emt 0:00:31]} 42. Nb4 {[%emt 0:02:09]} Ra1 {[%emt 0:04:36]} 43. Kb2 {[%emt 0:01:47]} Rf1 {[%emt 0:01:13]} 44. Nd3 {[%emt 0:00:02]} f5 {[%emt 0:01:03]} 45. Kc3 {[%emt 0:02:38]} Kd6 {[%emt 0:00:27]} 46. Kc4 {[%emt 0:01:15]} Ra1 {[%emt 0:00:45]} 47. Kb4 {[%emt 0:00:13]} Kd5 {[%emt 0:02:16]} 48. Nf4+ {[%emt 0:06:41]} Kd6 {[%emt 0:02:50]} 49. Nd3 {[%emt 0:02:12]} g5 {[%emt 0:00:32]} 50. hxg5 {[%emt 0:00:15]} hxg5 {[%emt 0:00:02][%cal Bh6g5,Bg5g4][%mdl 32]} 51. a4 {[%emt 0:00:48]} Kd5 {[%emt 0:00:33]} 52. Nc5 $2 {[%emt 0:00:38]} (52. a5) 52... g4 {[%emt 0:04:02]} 53. a5 {[%emt 0:01:03] [#]} Rxa5 {[%emt 0:00:49][%mdl 512]} 54. Ne6 {[%emt 0:02:52] [#]} (54. Nd7 Ra2) 54... Kxe6 $1 {[%emt 0:00:11]} 55. Kxa5 {[%emt 0:00:02]} Ke5 {[%emt 0:00:10]} 56. Kb5 {[%emt 0:00:03] Weighted Error Value: White=0.58/Black=0.18 (very precise)} 0-1